bitfinex-derivatives/quotes_BTCF0:USTF0_20250710
["timestamp","ask_amount","ask_price","bid_price","bid_amount"]
[1752164720574,0.10629,112430.0,112420.0,2.00661531]
[1752164721572,0.04469,112430.0,112420.0,1.631382]
[1752164721772,0.04469,112430.0,112420.0,2.00661531]
[1752164722172,0.04469,112430.0,112420.0,1.631382]
[1752164722484,0.04469,112430.0,112420.0,1.64581531]
[1752164722685,0.07639,112430.0,112420.0,1.601182]
[1752164722987,0.11011,112430.0,112420.0,0.55303961]
[1752164723185,0.14111,112430.0,112420.0,0.55303961]
[1752164723679,0.2851805,112430.0,112410.0,0.46797604]
[1752164723880,0.10991,112420.0,112410.0,0.66022235]
[1752164724076,0.18870658,112420.0,112410.0,0.57132095]
[1752164724276,0.22080658,112420.0,112410.0,0.57132095]
[1752164724478,0.25703371,112420.0,112410.0,0.57132095]
[1752164724684,0.22331371,112420.0,112410.0,0.93212095]
[1752164724878,0.22331371,112420.0,112410.0,2.45832095]
[1752164725077,0.14451713,112420.0,112410.0,2.08308764]
[1752164725296,0.17823713,112420.0,112410.0,2.45832095]
[1752164725597,0.25703371,112420.0,112410.0,2.45832095]
[1752164726294,0.25703371,112420.0,112410.0,2.47128992]
[1752164726601,0.25703371,112420.0,112410.0,0.56985661]
[1752164726795,0.79564011,112420.0,112410.0,0.03124292]
[1752164727096,0.61783371,112420.0,112410.0,0.58429843]
[1752164727298,0.61783371,112420.0,112410.0,0.20906512]
[1752164727496,0.17823713,112420.0,112410.0,0.58429843]
[1752164727797,0.13354713,112420.0,112410.0,0.584409]
[1752164728095,0.02473479,112420.0,112410.0,2.468329]
[1752164728298,0.02473479,112420.0,112410.0,2.501939]
[1752164728796,0.04469,112430.0,112420.0,0.1778063]
[1752164728991,0.15074989,112430.0,112420.0,0.55303961]
[1752164729496,0.17719989,112440.0,112420.0,0.96043849]
[1752164729692,0.08648968,112440.0,112430.0,0.55302371]
[1752164729887,0.08648968,112440.0,112430.0,0.91382371]
[1752164730092,0.07841,112440.0,112430.0,0.91382371]
[1752164730292,0.07841,112440.0,112430.0,0.55302371]
[1752164731297,0.14071,112440.0,112430.0,0.94743371]
[1752164731501,0.14071,112440.0,112430.0,0.96031534]
[1752164731702,0.10699,112440.0,112430.0,2.46767371]
[1752164732500,0.002,112450.0,112440.0,0.2113847]
[1752164732702,0.002,112450.0,112440.0,1.01251801]
[1752164732996,0.04669,112450.0,112440.0,1.01251801]
[1752164733300,0.07999,112450.0,112440.0,1.01251801]
[1752164733496,0.04669,112450.0,112440.0,1.01251801]
[1752164735697,0.07375157,112460.0,112450.0,0.1777589]
[1752164735898,0.48970747,112460.0,112440.0,0.46411661]
[1752164736105,0.07375157,112440.0,112430.0,0.59746221]
[1752164736398,0.25152627,112440.0,112430.0,0.37523331]
[1752164736606,0.61232627,112440.0,112430.0,0.55302381]
[1752164736903,0.07375157,112440.0,112430.0,0.55302381]
[1752164737496,0.07868157,112450.0,112440.0,0.1777747]
[1752164737696,0.07868157,112450.0,112440.0,0.55300801]
[1752164737896,0.03865,112450.0,112440.0,0.55300801]
[1752164738103,0.39945,112450.0,112440.0,0.55300801]
[1752164738299,0.39945,112450.0,112440.0,0.47295134]
[1752164738598,0.56134545,112460.0,112450.0,0.1777589]
[1752164738599,0.23919545,112460.0,112450.0,0.1777589]
[1752164738800,0.30449545,112460.0,112450.0,0.55299221]
[1752164739200,0.12669545,112460.0,112450.0,0.1777589]
[1752164739400,0.12669545,112460.0,112450.0,0.55299221]
[1752164740003,0.16476731,112460.0,112450.0,0.37523331]
[1752164740203,0.16476731,112460.0,112450.0,0.55299221]
[1752164740204,0.14202186,112460.0,112450.0,0.55299221]
[1752164740503,0.50282186,112460.0,112450.0,0.55299221]
[1752164741093,0.14202186,112460.0,112450.0,0.55299221]
[1752164741503,0.14202186,112460.0,112450.0,0.5741789]
[1752164741807,0.14202186,112460.0,112450.0,0.55299221]
[1752164742702,0.14202186,112460.0,112450.0,0.91379221]
[1752164742902,0.18671186,112460.0,112450.0,0.91379221]
[1752164743403,0.54751186,112460.0,112450.0,0.55299221]
[1752164744112,0.18671186,112460.0,112450.0,0.55299221]
[1752164744707,0.18671186,112460.0,112450.0,0.37523331]
[1752164745009,0.93975186,112460.0,112450.0,0.1777589]
[1752164745404,0.93975186,112460.0,112450.0,0.55299221]
[1752164746703,1.1210094,112460.0,112450.0,0.55299221]
[1752164746904,1.1210094,112460.0,112450.0,0.1777589]
[1752164747109,1.1210094,112460.0,112450.0,0.55299221]
[1752164747311,0.3679694,112460.0,112450.0,0.91379221]
[1752164747512,0.2640194,112460.0,112450.0,0.94951221]
[1752164747808,0.08276186,112460.0,112450.0,0.97971221]
[1752164748004,0.06489186,112460.0,112450.0,1.00107221]
[1752164748310,0.19793231,112460.0,112450.0,1.00107221]
[1752164748508,0.19793231,112460.0,112450.0,2.50407221]
[1752164748700,0.19793231,112460.0,112450.0,2.1288389]
[1752164748904,0.19793231,112460.0,112450.0,1.00107221]
[1752164749108,0.23658231,112460.0,112450.0,1.00107221]
[1752164749302,0.10354186,112460.0,112450.0,1.00107221]
[1752164750112,0.20993522,112460.0,112450.0,1.00107221]
[1752164750505,0.20993522,112460.0,112450.0,0.97077221]
[1752164750908,0.24093522,112460.0,112450.0,0.97077221]
[1752164751313,0.24093522,112460.0,112450.0,1.00117221]
[1752164751609,0.20993522,112460.0,112450.0,1.00117221]
[1752164751806,0.06489186,112460.0,112450.0,1.00117221]
[1752164752615,0.06489186,112460.0,112450.0,0.6259389]
[1752164752814,0.06489186,112460.0,112450.0,1.00117221]
[1752164753418,0.10354186,112460.0,112450.0,1.00117221]
[1752164754714,0.18327769,112460.0,112450.0,1.00117221]
[1752164755114,0.10354186,112460.0,112450.0,1.00117221]
[1752164756006,1.02624486,112460.0,112450.0,0.5296189]
[1752164756317,1.09254486,112460.0,112450.0,0.1688189]
[1752164756612,0.91480186,112460.0,112450.0,0.1688189]
[1752164757004,0.10354186,112460.0,112450.0,0.94057221]
[1752164757211,0.09993884,112460.0,112450.0,0.97127221]
[1752164757411,0.09993884,112460.0,112450.0,1.00337221]
[1752164757605,0.05876898,112460.0,112450.0,1.00337221]
[1752164757811,0.10345898,112460.0,112450.0,1.00337221]
[1752164758012,0.10345898,112460.0,112450.0,0.97127221]
[1752164758218,0.16595898,112460.0,112450.0,0.97127221]
[1752164758412,0.16595898,112460.0,112450.0,0.5960389]
[1752164759423,0.16595898,112460.0,112450.0,0.97127221]
[1752164759614,0.34370188,112460.0,112450.0,0.5603189]
[1752164759920,0.16595898,112460.0,112450.0,0.5603189]
[1752164760106,0.34370188,112460.0,112450.0,0.5296189]
[1752164760307,0.2610987,112450.0,112440.0,0.01436]
[1752164760506,0.2610987,112450.0,112430.0,0.01845675]
[1752164760507,0.2611145,112440.0,112430.0,0.01845675]
[1752164760711,0.2164562,112420.0,112410.0,0.19608654]
[1752164760916,1.40139576,112420.0,112410.0,0.01826544]
[1752164761112,1.28858956,112420.0,112410.0,0.19608744]
[1752164761417,0.92778956,112420.0,112410.0,0.19608744]
[1752164761620,1.84042183,112420.0,112410.0,0.19608744]
[1752164761809,1.84042183,112420.0,112410.0,0.01826544]
[1752164761810,1.3865762,112420.0,112410.0,0.01826544]
[1752164762009,1.67088157,112420.0,112410.0,0.01826544]
[1752164762213,0.64236201,112420.0,112410.0,0.19608744]
[1752164762415,1.38748201,112420.0,112410.0,0.19608744]
[1752164762617,0.46445,112420.0,112410.0,0.57011351]
[1752164762821,1.29872564,112420.0,112410.0,0.57011351]
[1752164763123,0.93792564,112420.0,112410.0,0.57084232]
[1752164763513,0.93792564,112420.0,112410.0,0.19608744]
[1752164764018,0.19216564,112420.0,112410.0,0.19608744]
[1752164764223,0.08578,112420.0,112410.0,0.18136429]
[1752164764520,0.10628514,112430.0,112420.0,0.1778062]
[1752164764723,0.93286108,112440.0,112430.0,0.1777904]
[1752164764925,0.22667108,112440.0,112430.0,0.1777904]
[1752164765216,0.97151108,112440.0,112430.0,0.1777904]
[1752164765416,0.22667108,112440.0,112430.0,0.1777904]
[1752164765819,0.03865,112430.0,112420.0,1.04669438]
[1752164766019,0.10375,112430.0,112420.0,0.6719395]
[1752164766713,0.07085,112430.0,112420.0,1.08241438]
[1752164766910,0.78241,112430.0,112420.0,1.14651438]
[1752164767114,0.86206932,112430.0,112420.0,1.14651438]
[1752164767312,0.07965932,112430.0,112420.0,1.14651438]
[1752164767526,0.07949745,112430.0,112420.0,1.14651438]
[1752164768014,0.04469,112440.0,112430.0,0.3147804]
[1752164768219,0.04469,112440.0,112430.0,2.60175528]
[1752164768815,0.04469,112450.0,112440.0,0.1777746]
[1752164769016,0.04482348,112450.0,112440.0,1.03262544]
[1752164769222,0.00013348,112450.0,112440.0,1.03262544]
[1752164769421,0.81011,112470.0,112460.0,0.1777429]
[1752164769422,0.91783929,112470.0,112460.0,0.1777429]
[1752164769615,0.95740117,112470.0,112460.0,0.5385429]
[1752164769813,0.77967277,112470.0,112460.0,0.5385429]
[1752164770017,0.95739987,112470.0,112460.0,0.5385429]
[1752164770219,1.00208987,112470.0,112460.0,0.5385429]
[1752164770819,1.03651898,112470.0,112460.0,0.5385429]
[1752164771016,0.177743,112460.0,112450.0,0.03699]
[1752164771220,0.1777588,112450.0,112440.0,0.71474236]
[1752164771415,0.24822068,112450.0,112440.0,0.71474236]
[1752164771621,0.28774068,112450.0,112440.0,0.71474236]
[1752164771821,0.10998188,112450.0,112440.0,0.71474236]
[1752164772131,0.10998188,112450.0,112440.0,1.08949724]
[1752164772720,0.09211188,112450.0,112440.0,1.08949724]
[1752164773219,0.26987068,112450.0,112440.0,1.08949724]
[1752164773623,0.26987068,112450.0,112440.0,0.3608]
[1752164773823,0.2172946,112440.0,112430.0,0.00013348]
[1752164774027,1.03103648,112440.0,112430.0,0.58966876]
[1752164774217,1.03103648,112440.0,112430.0,0.62196876]
[1752164774523,0.85326188,112440.0,112430.0,0.21491388]
[1752164774719,0.82056188,112440.0,112430.0,0.58966876]
[1752164774923,0.82056188,112440.0,112430.0,0.62196876]
[1752164775121,1.03103648,112440.0,112430.0,0.24721388]
[1752164775532,1.13724106,112440.0,112430.0,0.24721388]
[1752164776026,0.14258188,112440.0,112430.0,0.98276876]
[1752164776234,0.03956188,112440.0,112430.0,0.98276876]
[1752164776532,0.1640269,112450.0,112440.0,0.2147646]
[1752164776734,0.05782232,112450.0,112440.0,1.01261948]
[1752164780331,0.15089458,112460.0,112440.0,0.83484488]
[1752164780529,0.04469,112460.0,112450.0,1.01150358]
[1752164780730,0.04469,112460.0,112450.0,2.48822358]
[1752164780930,0.15149458,112470.0,112460.0,0.1700429]
[1752164781126,0.002,112480.0,112470.0,0.1777271]
[1752164781330,0.002,112480.0,112470.0,0.94541198]
[1752164781633,0.002,112480.0,112470.0,3.18401198]
[1752164781929,0.002,112480.0,112470.0,3.21400827]
[1752164782431,0.002,112480.0,112470.0,3.18413198]
[1752164783231,0.002,112480.0,112470.0,2.84114517]
[1752164783431,0.002,112480.0,112470.0,3.18537198]
[1752164783626,0.002,112480.0,112470.0,3.25702394]
[1752164784430,0.002,112480.0,112470.0,3.28842394]
[1752164786132,0.002,112480.0,112470.0,3.31895201]
[1752164786534,0.002,112480.0,112470.0,2.94419713]
[1752164786732,0.002,112480.0,112470.0,3.31895201]
[1752164787133,0.002,112480.0,112470.0,3.29797038]
[1752164787336,0.002,112480.0,112470.0,3.39578367]
[1752164787532,0.04152,112490.0,112470.0,3.38578367]
[1752164787737,0.02565,112490.0,112480.0,0.6025113]
[1752164787932,0.02565,112490.0,112480.0,0.97726618]
[1752164788332,0.23153045,112500.0,112490.0,0.2146855]
[1752164788536,0.06529,112500.0,112490.0,2.48924038]
[1752164788728,0.065,112500.0,112490.0,2.03446278]
[1752164789136,0.19804045,112500.0,112490.0,1.0261417]
[1752164789438,0.07723,112500.0,112490.0,1.0261417]
[1752164789935,0.07723,112500.0,112490.0,1.1261417]
[1752164790135,0.08440186,112520.0,112510.0,0.177664]
[1752164790340,0.30157006,112520.0,112510.0,1.00514292]
[1752164790540,0.04152,112520.0,112510.0,0.207864]
[1752164790835,0.2191682,112520.0,112510.0,1.06714292]
[1752164791036,0.04152,112520.0,112510.0,1.06714292]
[1752164791829,0.2191681,112520.0,112510.0,1.06714292]
[1752164792035,0.5799681,112520.0,112510.0,0.70634292]
[1752164792241,0.04152,112520.0,112510.0,1.06714292]
[1752164792441,0.08194579,112520.0,112510.0,1.06714292]
[1752164793446,0.27342389,112520.0,112510.0,0.70634292]
[1752164793644,0.27342389,112520.0,112510.0,0.207864]
[1752164793942,0.30352389,112520.0,112510.0,0.177664]
[1752164794441,1.50448281,112520.0,112510.0,0.177664]
[1752164794638,0.1776639,112510.0,112500.0,0.67185198]
[1752164794839,0.25028969,112510.0,112500.0,0.7777309]
[1752164795137,0.07262579,112510.0,112500.0,1.2069209]
[1752164795338,0.07994579,112510.0,112500.0,1.2069209]
[1752164795543,0.04197,112530.0,112520.0,0.1776481]
[1752164795743,1.0161424,112530.0,112520.0,0.64432702]
[1752164795943,0.2819024,112530.0,112520.0,0.71271702]
[1752164796339,0.73468,112530.0,112520.0,0.71271702]
[1752164796640,0.80850124,112540.0,112530.0,0.1776324]
[1752164796834,0.49239124,112540.0,112530.0,0.68130132]
[1752164797036,0.22594754,112540.0,112530.0,1.11331145]
[1752164797238,0.04469,112540.0,112530.0,1.14361145]
[1752164797443,0.04469,112540.0,112530.0,1.17681145]
[1752164797744,0.2601108,112550.0,112540.0,0.20800372]
[1752164797945,0.08251,112530.0,112520.0,0.3608]
[1752164798150,0.2154681,112520.0,112510.0,0.19592661]
[1752164798343,0.03782,112520.0,112510.0,0.55672661]
[1752164798543,0.10621373,112520.0,112510.0,1.17573253]
[1752164798748,0.18872373,112530.0,112520.0,0.1776481]
[1752164799047,0.35505529,112540.0,112530.0,0.1776323]
[1752164799245,0.11959856,112540.0,112530.0,1.11683133]
[1752164799446,0.0471073,112540.0,112530.0,1.11683133]
[1752164799645,0.0471073,112540.0,112530.0,1.38875241]
[1752164799842,0.0339,112560.0,112550.0,0.1776008]
[1752164800147,0.003,112560.0,112550.0,1.43822972]
[1752164800450,0.18425754,112560.0,112550.0,1.43822972]
[1752164800650,0.18425754,112560.0,112550.0,0.9715508]
[1752164800844,0.18425754,112560.0,112550.0,1.43822972]
[1752164801247,0.18425754,112560.0,112550.0,0.9715508]
[1752164801448,0.18425754,112560.0,112550.0,1.43822972]
[1752164801645,0.36184254,112560.0,112550.0,0.9715508]
[1752164801845,0.18425754,112560.0,112550.0,1.43822972]
[1752164802048,0.36184254,112560.0,112550.0,0.71662972]
[1752164802244,0.76046254,112560.0,112550.0,0.07235]
[1752164802640,0.2154208,112550.0,112540.0,0.23496548]
[1752164802845,0.6073208,112550.0,112540.0,0.23496548]
[1752164803047,0.20420754,112560.0,112550.0,0.2165508]
[1752164803250,0.215405,112560.0,112550.0,0.71722972]
[1752164803447,0.957045,112560.0,112550.0,0.03895]
[1752164803649,0.957045,112560.0,112520.0,0.0444118]
[1752164803650,0.03782,112550.0,112520.0,0.4441618]
[1752164803850,0.2087176,112540.0,112530.0,0.1776323]
[1752164804154,0.6073376,112540.0,112530.0,0.70198593]
[1752164804341,0.2829376,112540.0,112530.0,0.05767471]
[1752164804544,0.2829376,112540.0,112530.0,0.01872471]
[1752164804748,0.2829376,112540.0,112530.0,0.19635701]
[1752164804959,1.0247776,112540.0,112530.0,0.19635701]
[1752164805146,1.0246176,112540.0,112530.0,0.19635701]
[1752164805348,1.0246176,112540.0,112530.0,0.01872471]
[1752164805750,1.5631376,112540.0,112530.0,0.01872471]
[1752164805951,1.5626176,112540.0,112530.0,0.01872471]
[1752164806159,0.8214576,112540.0,112530.0,0.01872471]
[1752164806359,1.3848576,112540.0,112530.0,0.01872471]
[1752164806855,0.6437376,112540.0,112530.0,0.01872471]
[1752164807158,0.6437376,112540.0,112530.0,0.48540363]
[1752164807358,1.3844576,112540.0,112530.0,0.23530711]
[1752164807555,0.44050561,112540.0,112530.0,0.70198603]
[1752164807859,0.44050561,112540.0,112530.0,0.76758603]
[1752164807860,0.07970561,112540.0,112530.0,0.76758603]
[1752164808153,0.6516273,112550.0,112540.0,0.03895]
[1752164808359,1.50575288,112550.0,112540.0,0.28904811]
[1752164808658,1.50575288,112550.0,112540.0,0.68324552]
[1752164808855,0.1776166,112540.0,112530.0,0.30089471]
[1752164809053,1.3165566,112540.0,112530.0,0.07235]
[1752164809253,0.72668218,112540.0,112530.0,0.52428362]
[1752164809450,1.9334811,112540.0,112530.0,0.0186547]
[1752164809652,0.2154682,112520.0,112510.0,0.05899025]
[1752164809856,0.5583982,112520.0,112510.0,0.02004025]
[1752164810156,2.3431379,112520.0,112510.0,0.00177754]
[1752164810353,0.1776797,112500.0,112490.0,0.5393524]
[1752164810552,0.9552597,112500.0,112490.0,0.55303063]
[1752164810754,1.0260597,112500.0,112490.0,0.7170479]
[1752164810960,1.0260597,112500.0,112490.0,0.76951888]
[1752164811161,0.9896597,112500.0,112490.0,0.80591888]
[1752164811359,0.2498997,112500.0,112490.0,0.80591888]
[1752164811565,0.9887797,112500.0,112490.0,0.81114065]
[1752164811862,0.2154997,112500.0,112490.0,0.32571898]
[1752164812050,0.03782,112500.0,112490.0,0.8262979]
[1752164812252,0.2154997,112500.0,112490.0,0.8262979]
[1752164812456,0.03782,112500.0,112490.0,1.1870979]
[1752164812648,0.13246104,112510.0,112490.0,1.0094024]
[1752164812852,0.13246104,112510.0,112500.0,1.11160862]
[1752164812853,0.17028104,112510.0,112500.0,1.11160862]
[1752164813048,1.00671616,112510.0,112500.0,1.11160862]
[1752164813352,0.17028104,112510.0,112500.0,1.11160862]
[1752164813655,0.07962878,112520.0,112510.0,0.2166139]
[1752164813862,0.07962878,112520.0,112510.0,1.11159282]
[1752164814060,0.11744878,112530.0,112520.0,0.1776482]
[1752164814261,0.29508118,112530.0,112520.0,0.6448982]
[1752164814459,0.29508118,112530.0,112520.0,1.11157712]
[1752164814956,0.29508118,112530.0,112520.0,0.57312892]
[1752164815158,0.32978118,112530.0,112520.0,0.57312892]
[1752164815659,0.32978118,112530.0,112520.0,0.2840981]
[1752164815855,0.29508118,112530.0,112520.0,0.2840981]
[1752164816163,0.29508118,112530.0,112520.0,0.75077702]
[1752164816659,0.1174517,112530.0,112520.0,0.57312892]
[1752164816860,0.03782,112530.0,112520.0,0.57312892]
[1752164817059,0.03782,112530.0,112520.0,0.10645]
[1752164817262,0.035524,112530.0,112520.0,0.57312892]
[1752164817651,0.90262346,112540.0,112520.0,0.57312892]
[1752164817852,0.90262346,112540.0,112530.0,0.46667892]
[1752164818149,1.26186346,112540.0,112530.0,0.54072892]
[1752164818348,0.90106346,112540.0,112530.0,0.54072892]
[1752164819650,0.20480346,112540.0,112530.0,0.54072892]
[1752164819957,0.09658346,112540.0,112530.0,0.90152892]
[1752164820163,0.82850346,112540.0,112530.0,0.93652892]
[1752164820462,0.82834346,112540.0,112530.0,0.93652892]
[1752164820664,0.8113917,112540.0,112530.0,0.46985]
[1752164820859,0.84292416,112540.0,112530.0,0.93652892]
[1752164821255,0.11116416,112540.0,112530.0,0.93652892]
[1752164821452,0.84240416,112540.0,112530.0,0.93652892]
[1752164821757,0.84240416,112540.0,112530.0,0.46985]
[1752164821959,0.84240416,112540.0,112520.0,0.91581634]
[1752164821960,0.03782,112530.0,112520.0,0.01825693]
[1752164822162,0.15372026,112530.0,112520.0,0.01825693]
[1752164822365,2.12734738,112530.0,112500.0,0.41803875]
[1752164822559,0.15372878,112520.0,112510.0,0.50562892]
[1752164822764,0.87860124,112520.0,112510.0,0.50562892]
[1752164822962,0.87860124,112520.0,112510.0,0.57622892]
[1752164823167,0.91490124,112520.0,112510.0,0.54182892]
[1752164823362,0.22206124,112520.0,112510.0,0.54182892]
[1752164823559,0.95142124,112520.0,112510.0,0.07515]
[1752164823761,0.95142124,112520.0,112510.0,0.54182892]
[1752164823960,0.87832124,112520.0,112510.0,0.54182892]
[1752164824166,0.87832124,112520.0,112510.0,0.11175]
[1752164824367,0.14896124,112520.0,112510.0,0.57842892]
[1752164824567,0.03782,112510.0,112500.0,0.93660183]
[1752164824866,0.06935246,112510.0,112500.0,0.43375]
[1752164825160,0.03153246,112510.0,112500.0,0.90042892]
[1752164825366,0.75857246,112510.0,112500.0,0.95067506]
[1752164825862,0.03153246,112510.0,112500.0,0.95067506]
[1752164826059,0.75861246,112510.0,112500.0,0.95067506]
[1752164826857,0.03153246,112510.0,112500.0,0.93702892]
[1752164827058,0.75717246,112510.0,112500.0,0.93702892]
[1752164827367,0.03153246,112510.0,112500.0,0.93702892]
[1752164827568,0.75689246,112510.0,112500.0,0.93702892]
[1752164827770,0.75689246,112510.0,112500.0,0.47035]
[1752164828068,0.75661246,112510.0,112500.0,0.93702892]
[1752164828571,0.93427616,112510.0,112500.0,1.11470842]
[1752164828868,0.24885616,112510.0,112500.0,1.11470842]
[1752164829070,0.97337616,112510.0,112500.0,1.11470842]
[1752164829568,0.97337616,112510.0,112500.0,1.11463492]
[1752164829964,0.75429246,112510.0,112500.0,1.58131384]
[1752164830162,0.93195616,112510.0,112500.0,1.58131384]
[1752164830564,0.93195616,112510.0,112500.0,1.11463492]
[1752164830872,0.20919616,112510.0,112500.0,1.58131384]
[1752164831062,0.93171616,112510.0,112500.0,1.58131384]
[1752164831260,1.01132494,112510.0,112500.0,1.58131384]
[1752164831468,0.20919616,112510.0,112500.0,1.58131384]
[1752164831660,0.93087606,112510.0,112500.0,1.58131384]
[1752164831861,0.20919606,112510.0,112500.0,1.58131384]
[1752164832166,0.03153246,112510.0,112500.0,1.59985834]
[1752164832371,0.80092878,112520.0,112510.0,0.2173436]
[1752164832566,0.001,112520.0,112510.0,0.6571436]
[1752164832766,0.08060878,112520.0,112510.0,1.12382252]
[1752164833061,0.001,112520.0,112510.0,0.6571436]
[1752164833567,0.001,112520.0,112510.0,1.12382252]
[1752164834274,0.07960878,112530.0,112520.0,0.2173279]
[1752164834468,0.07960878,112530.0,112520.0,1.14155918]
[1752164834969,0.10627415,112550.0,112520.0,0.96391128]
[1752164835175,0.10627415,112550.0,112540.0,1.86739414]
[1752164835363,0.002,112560.0,112550.0,0.2124205]
[1752164835667,0.002,112560.0,112550.0,2.0641205]
[1752164835868,0.002,112560.0,112550.0,3.03407834]
[1752164836068,0.002,112560.0,112550.0,3.15949441]
[1752164836365,0.002,112560.0,112550.0,2.2007205]
[1752164836564,0.002,112560.0,112550.0,2.66739942]
[1752164837271,0.002,112560.0,112550.0,3.13407834]
[1752164837466,0.1795847,112560.0,112550.0,3.13407834]
[1752164837768,0.1795847,112560.0,112550.0,2.66739942]
[1752164838166,0.32551885,112560.0,112550.0,2.1956405]
[1752164838362,0.32551885,112560.0,112550.0,0.4391]
[1752164838363,0.2192447,112560.0,112550.0,0.4391]
[1752164838568,0.28585885,112560.0,112550.0,0.46667892]
[1752164838764,0.32551885,112560.0,112550.0,0.75579942]
[1752164839263,0.14793415,112560.0,112550.0,0.75579942]
[1752164839459,0.9407247,112560.0,112550.0,1.11659942]
[1752164839662,1.04699885,112560.0,112550.0,1.11659942]
[1752164839966,0.32551885,112560.0,112550.0,1.11659942]
[1752164840167,0.32551885,112560.0,112550.0,1.08177942]
[1752164840469,0.86821415,112560.0,112550.0,1.08177942]
[1752164841062,0.04166,112560.0,112550.0,1.08177942]
[1752164841264,0.7611,112560.0,112550.0,1.08177942]
[1752164841573,0.95564242,112560.0,112550.0,0.5384005]
[1752164841770,1.0613398,112560.0,112550.0,0.1776005]
[1752164841966,0.86679738,112560.0,112550.0,1.12429942]
[1752164842166,1.04402208,112560.0,112550.0,1.12429942]
[1752164842368,0.9378047,112560.0,112550.0,1.12429942]
[1752164842670,0.76022,112560.0,112550.0,1.12429942]
[1752164842867,0.9199747,112560.0,112550.0,0.58589892]
[1752164843167,0.9199747,112560.0,112550.0,0.0844]
[1752164843473,1.02622941,112560.0,112550.0,0.72867942]
[1752164843671,0.9188547,112560.0,112550.0,0.72867942]
[1752164844062,1.05159734,112560.0,112550.0,0.55107892]
[1752164844266,1.08694,112560.0,112550.0,0.72867942]
[1752164844967,1.08694,112560.0,112550.0,0.64869862]
[1752164845369,1.08694,112560.0,112550.0,0.68837862]
[1752164845773,1.08694,112560.0,112550.0,0.51077812]
[1752164845965,0.4127,112560.0,112550.0,0.64869862]
[1752164846170,0.99479736,112560.0,112550.0,0.3608]
[1752164846468,0.99479736,112560.0,112520.0,0.48513128]
[1752164846469,0.2172921,112530.0,112520.0,0.48513128]
[1752164846773,0.96763476,112530.0,112520.0,0.66277918]
[1752164846961,1.01083476,112530.0,112520.0,0.46667892]
[1752164847364,1.01083476,112530.0,112520.0,0.64432682]
[1752164847669,0.83320266,112530.0,112520.0,1.00512682]
[1752164847869,0.11820266,112530.0,112520.0,0.5384479]
[1752164848170,0.07500266,112530.0,112520.0,1.04480682]
[1752164848367,0.74902266,112530.0,112520.0,1.08710682]
[1752164848562,0.03534266,112530.0,112520.0,1.13070682]
[1752164849571,0.2172765,112540.0,112530.0,0.1776321]
[1752164849572,0.85910864,112540.0,112530.0,0.1776321]
[1752164849773,0.89446008,112540.0,112530.0,1.08709102]
[1752164849973,0.35891638,112540.0,112530.0,1.13069102]
[1752164850169,0.74823144,112540.0,112530.0,1.13069102]
[1752164850363,0.14164008,112540.0,112530.0,1.13069102]
[1752164851166,0.03535144,112540.0,112530.0,1.13069102]
[1752164852170,0.07501144,112540.0,112530.0,0.3608]
[1752164852377,0.25262784,112540.0,112530.0,1.00511102]
[1752164852673,0.29172784,112540.0,112530.0,1.00511102]
[1752164852973,0.10628864,112550.0,112540.0,0.2172964]
[1752164853175,0.08841864,112550.0,112540.0,1.08377532]
[1752164853369,0.04444,112560.0,112550.0,0.2172806]
[1752164853573,0.1102308,112560.0,112550.0,2.40455844]
[1752164853770,0.1102308,112560.0,112550.0,2.30455844]
[1752164853966,0.1546708,112560.0,112550.0,1.83787952]
[1752164854172,0.2109705,112570.0,112560.0,0.1775848]
[1752164854370,0.2109705,112570.0,112560.0,1.06279837]
[1752164854875,0.09726897,112570.0,112560.0,1.06279837]
[1752164855073,0.09726897,112570.0,112560.0,0.59611945]
[1752164855074,0.80886897,112570.0,112560.0,0.59611945]
[1752164855276,0.09726897,112570.0,112560.0,1.06279837]
[1752164855773,0.08036,112570.0,112560.0,1.06279837]
[1752164855974,0.03966,112570.0,112560.0,1.06279837]
[1752164856188,0.75014,112570.0,112560.0,1.06279837]
[1752164856371,0.927709,112570.0,112560.0,1.06279837]
[1752164856876,0.927669,112570.0,112560.0,0.01853465]
[1752164857073,0.257929,112570.0,112560.0,0.01853465]
[1752164857273,0.967849,112570.0,112560.0,0.01853465]
[1752164857473,0.967849,112570.0,112560.0,0.19611945]
[1752164857673,0.967849,112570.0,112560.0,0.66279837]
[1752164857878,0.967649,112570.0,112560.0,0.66279837]
[1752164858076,0.83288,112570.0,112560.0,0.66279837]
[1752164858277,1.010449,112570.0,112560.0,0.19611945]
[1752164858473,0.83288,112570.0,112560.0,0.55691945]
[1752164858669,1.010449,112570.0,112560.0,0.55691945]
[1752164858872,0.83288,112570.0,112560.0,0.55691945]
[1752164859077,1.010449,112570.0,112560.0,1.02359837]
[1752164859275,1.010449,112570.0,112560.0,0.01853465]
[1752164859476,1.010449,112570.0,112560.0,0.19611945]
[1752164859869,0.300729,112570.0,112560.0,0.66279837]
[1752164860182,1.011249,112570.0,112560.0,0.19611945]
[1752164860380,1.011249,112570.0,112560.0,0.01853465]
[1752164860580,1.011249,112570.0,112560.0,0.19611945]
[1752164861081,1.012049,112570.0,112560.0,0.19611945]
[1752164861269,0.83448,112570.0,112560.0,0.66279837]
[1752164861675,0.83416,112570.0,112560.0,1.02359837]
[1752164861881,1.011729,112570.0,112560.0,1.02359837]
[1752164862083,1.011729,112570.0,112560.0,0.66279837]
[1752164862276,0.83416,112570.0,112560.0,0.66279837]
[1752164862477,1.011729,112570.0,112560.0,0.66279837]
[1752164862676,0.83315901,112570.0,112560.0,0.66279837]
[1752164862877,1.01072801,112570.0,112560.0,0.66279837]
[1752164863078,1.11711044,112570.0,112560.0,0.66279837]
[1752164863382,1.11711044,112570.0,112560.0,0.19611945]
[1752164863679,1.11711044,112570.0,112560.0,0.66279837]
[1752164863872,1.01072801,112570.0,112560.0,0.66279837]
[1752164864482,1.01072801,112570.0,112560.0,0.19611945]
[1752164864679,1.01072801,112570.0,112560.0,0.66279837]
[1752164865073,1.05156724,112570.0,112560.0,0.66279837]
[1752164865280,0.22587716,112570.0,112560.0,1.02359837]
[1752164865480,1.11428616,112570.0,112560.0,1.02359837]
[1752164865681,0.93671716,112570.0,112560.0,1.02359837]
[1752164865983,1.11428616,112570.0,112560.0,1.02359837]
[1752164866683,1.11284616,112570.0,112560.0,1.02359837]
[1752164867283,0.32369823,112570.0,112560.0,0.55691945]
[1752164867474,1.03217823,112570.0,112560.0,1.02359837]
[1752164867674,1.03169823,112570.0,112560.0,1.02359837]
[1752164868775,1.03169823,112570.0,112560.0,0.55691945]
[1752164868981,1.03169823,112570.0,112560.0,1.02359837]
[1752164869383,1.03169823,112570.0,112560.0,0.55691945]
[1752164869585,0.87958923,112570.0,112560.0,0.58363945]
[1752164869884,1.05715823,112570.0,112560.0,1.09491837]
[1752164870578,1.13615105,112570.0,112560.0,1.09491837]
[1752164870788,1.15299017,112570.0,112560.0,1.09491837]